Cogmind - Beta 13 @@@ ROGUE MODE // 2024.04.02 @ 14:38:41 Player: writers.room Result: Destroyed self via exploding Nuclear Reactor Performance ------------- Evolutions (1) 500 Regions Visited (3) 600 Robots Destroyed (23) 115 Value Destroyed (455) 455 Prototype IDs (4) 80 Alien Tech Used (0) 0 Bonus (0) 0 TOTAL SCORE: 1750 Bonus ------- None Cogmind --------- Core Integrity 0/400 Matter 218/300 Energy 46/100 System Corruption 0% Temperature Cool (0) Movement Core (150) Ox2 Location -9/Materials Parts ------- > --- POWER (1) -------- (None) > --- PROPULSION (3) --- Aluminum Leg > --- UTILITY (3) ------ ECM Suite > --- WEAPON (2) ------- Heavy EM Pulse Gun Mining Claw > --- INVENTORY (5) ---- Light Ion Engine Weapon Shielding Advanced Beam Rifle Peak State ------------ > --- POWER ------------ Ion Engine > --- PROPULSION ------- Flight Unit Flight Unit Improved Flight Unit > --- UTILITY ---------- Melee Analysis Suite Melee Analysis Suite ECM Suite > --- WEAPON ----------- Advanced Beam Rifle Autogun > --- INVENTORY -------- Flight Unit High-capacity Storage Unit Heavy EM Pulse Gun Mining Claw Mining Claw [Rating: 19] Favorites ----------- Power Light Ion Engine Engine Light Ion Engine Propulsion Flight Unit Leg Aluminum Leg Hover Unit Backup Propulsion I Flight Unit Flight Unit Utility Melee Analysis Suite Device ECM Suite Storage High-capacity Storage Unit Processor Melee Analysis Suite Weapon Mining Laser Energy Gun Beam Rifle Ballistic Gun Light Assault Rifle Launcher Grenade Launcher Special Weapon Mining Laser Slashing Weapon Mining Claw Build | -11 -10 -10 -9 ------- Run | Yrd Mat Min Mat Slots Evolved 2 | . . . 2 Power . | . . . . Propulsion 1 | . . . 1 Utility 1 | . . . 1 Weapon . | . . . . Parts Attached 36 | 3 1 8 24 Power 8 | 1 . 2 5 Engine 8 | 1 . 2 5 Core . | . . . . Reactor . | . . . . Propulsion 11 | 2 . 3 6 Treads . | . . . . Leg 4 | 2 . . 2 Wheel . | . . . . Hover . | . . . . Flight 7 | . . 3 4 Utility 5 | . . . 5 Device 1 | . . . 1 Storage 1 | . . . 1 Processor 3 | . . . 3 Hackware . | . . . . Protection . | . . . . Artifact . | . . . . Weapon 12 | . 1 3 8 Energy Gun 3 | . . . 3 Energy Cannon . | . . . . Ballistic Gun 2 | . . 1 1 Ballistic Cannon . | . . . . Launcher 2 | . 1 . 1 Special Weapon 2 | . . 2 . Impact Weapon . | . . . . Slashing Weapon 3 | . . . 3 Piercing Weapon . | . . . . Special Melee Weapon . | . . . . Unidentified Prototypes 4 | . . . 4 Parts Lost 18 | . . 3 15 Power 4 | . . 1 3 Propulsion 9 | . . 1 8 Utility 2 | . . . 2 Weapon 3 | . . 1 2 Highest Loss Streak 13 | . . 2 13 To Critical Strikes . | . . . . Average Slot Usage (%) 63 | . 50 65 67 Engine 11 | . 14 13 7 Leg 9 | . 28 6 1 Flight 17 | . . 20 24 Device 1 | . . . 5 Processor 3 | . . . 11 Energy Gun 1 | . . . 4 Ballistic Gun 4 | . . 4 5 Launcher 3 | . 8 3 1 Special Weapon 7 | . . 15 . Slashing Weapon 1 | . . . 4 Naked Turns . | . . . . Heaviest Build 15 | 3 6 6 15 Greatest Support 20 | 20 20 20 20 Greatest Overweight (x) 2 | . . 1 2 Average Overweight (x) . | . . . . Largest Inventory Capacity 20 | 5 5 5 20 Average Capacity 5 | 5 5 5 5 Most Carried 5 | 2 5 5 5 Average Carried 3 | . . 3 4 Final Capacity 5 | 5 5 5 5 Final Carried 5 | . 5 5 3 Class Distribution -------------------- 100% | Mutant Dominant Class ---------------- Mutant | -10/Materials Mutant | -10/Mines Mutant | -9/Materials Resources | -11 -10 -10 -9 ----------- Run | Yrd Mat Min Mat Matter Collected 563 | 230 . 22 311 Remotely . | . . . . Salvage Created 415 | . 44 17 354 Parts 47 | . 1 9 37 Haulers Intercepted 3 | . . . 3 Recyclers Shooed . | . . . . Parts Field Recycled . | . . . . Retrieved Matter . | . . . . Parts Self-Destructed . | . . . . Prevented . | . . . . Kills | -11 -10 -10 -9 ------- Run | Yrd Mat Min Mat Combat Hostiles Destroyed 18 | . 2 7 9 Melee 2 | . . . 2 Guns 2 | . . . 2 Cannons 1 | . . 1 . AOE 13 | . 2 6 5 Classes Destroyed 6 | . 1 1 4 Worker 1 | . . . 1 Hauler 3 | . . . 3 Watcher 1 | . . . 1 Swarmer 11 | . . 7 4 Grunt 6 | . 2 . 4 Sentry 1 | . . . 1 Best Kill Streak 7 | . 2 3 7 Combat Bots Only 5 | . 2 3 5 Max Kills in Single Turn 4 | . 1 3 4 Gunslinging . | . . . . Exploded 3 | . 1 3 3 Melee 1 | . . . 1 Uniques/NPCs Destroyed . | . . . . Combat | -11 -10 -10 -9 -------- Run | Yrd Mat Min Mat Hostile Shots Fired 159 | . 5 27 127 Missed 46 | . 1 6 39 Damage Taken 1448 | . 51 272 1125 Core 475 | . . 54 421 Absorbed by Shields . | . . . . Core Remaining (%) 89 | 100 . 78 . Volleys Fired 40 | . 5 9 26 Largest 2 | . 1 2 2 Hottest 200 | . 30 200 79 Shots Fired 51 | . 5 11 35 Gun 32 | . . . 32 Cannon . | . . . . Launcher 12 | . 5 4 3 Special 7 | . . 7 . Kinetic 13 | . . . 13 Thermal 22 | . . 7 15 Explosive 12 | . 5 4 3 Electromagnetic 4 | . . . 4 Robot Hit Streak 6 | . 3 1 6 Robot Miss Streak 2 | . 1 2 2 Penetration Max . | . . . . Secondary Targets . | . . . . Shots Hit Robots 35 | . 3 4 28 Core Hits 28 | . 3 7 18 Critical Kills . | . . . . Critical Parts Destroyed . | . . . . Critical Strikes 1 | . . . 1 Burn 1 | . . . 1 Melee Attacks 14 | . . . 14 Impact . | . . . . Slashing 14 | . . . 14 Piercing . | . . . . Sneak Attacks . | . . . . Combat Hostiles . | . . . . Follow-up Attacks . | . . . . Damage Inflicted 1359 | . 234 394 731 Guns 246 | . . . 246 Cannons . | . . . . Explosions 860 | . 234 346 280 Melee 205 | . . . 205 Ramming . | . . . . Kinetic 146 | . . . 146 Thermal 148 | . . 48 100 Explosive 860 | . 234 346 280 Electromagnetic . | . . . . Impact . | . . . . Slashing 205 | . . . 205 Piercing . | . . . . Highest Corruption . | . . . . Average Corruption . | . . . . Corruption Purged . | . . . . Corruption Blocked . | . . . . Overload Shots . | . . . . Overflow Damage 79 | . 23 27 29 Projectiles . | . . . . Explosions 79 | . 23 27 29 Melee . | . . . . Knockbacks . | . . . . Impact . | . . . . Kinetic . | . . . . Secondary . | . . . . Self-Inflicted Damage 279 | . . 71 208 Shots 6 | . . 2 4 Rammed . | . . . . Targets Rammed . | . . . . Kicked . | . . . . Crushed . | . . . . Highest Temperature 189 | . 6 157 189 Average Temperature 48 | . 2 71 37 Received Heat Transfer 537 | . 27 . 510 Siege Activations . | . . . . Robots Corrupted . | . . . . Combat Hostiles . | . . . . Parts Fried . | . . . . Impact Corruptions . | . . . . Robots Melted . | . . . . Combat Hostiles . | . . . . Parts Melted . | . . . . Heat Transferred 507 | . . 100 407 Parts Sabotaged . | . . . . Parts Stolen . | . . . . Parts Stripped . | . . . . Power Chain Reactions . | . . . . Alert | -11 -10 -10 -9 ------- Run | Yrd Mat Min Mat Peak Influence 299 | . 115 206 299 Initial 44 | . . 44 1 Average 137 | . 62 143 206 Maximum Alert Level 1 | . . 1 1 Low Security (%) 49 | 100 100 43 15 Level 1 50 | . . 56 84 Level 2 . | . . . . Level 3 . | . . . . Level 4 . | . . . . Level 5 . | . . . . High Security . | . . . . Max Security . | . . . . Squads Dispatched 3 | . . . 3 Investigation 1 | . . . 1 Extermination . | . . . . Reinforcement 2 | . . . 2 Assault . | . . . . Garrison . | . . . . Intercept . | . . . . Searches Triggered . | . . . . Construction Impeded . | . . . . Haulers Reinforced . | . . . . Active Scanning Responses . | . . . . Cargo Convoy Interrupts . | . . . . Stealth | -11 -10 -10 -9 --------- Run | Yrd Mat Min Mat Distress Signals . | . . . . Communications Jammed . | . . . . Distress Signals . | . . . . Times Spotted 31 | . 3 10 18 Peak Tracking Total 7 | . 2 3 7 Tactical Retreats 2 | . . . 2 Traps | -11 -10 -10 -9 ------- Run | Yrd Mat Min Mat Traps Triggered 1 | . . . 1 Indirectly . | . . . . Trap Hack Attempts . | . . . . Triggered . | . . . . Disarmed . | . . . . Reprogrammed . | . . . . Reused . | . . . . Traps Extracted . | . . . . Installed . | . . . . Triggered . | . . . . Machines | -11 -10 -10 -9 ---------- Run | Yrd Mat Min Mat Machines Disabled 6 | . 2 . 4 Max in Single Turn 2 | . 2 . 2 Machines Repaired . | . . . . Machines Dismantled . | . . . . Machines Sabotaged . | . . . . Overloaded Fab Kills . | . . . . Hacking | -11 -10 -10 -9 --------- Run | Yrd Mat Min Mat Machines Accessed 6 | . 3 . 3 Terminals 3 | . 2 . 1 Fabricators . | . . . . Repair Stations 1 | . . . 1 Recycling Units 2 | . 1 . 1 Scanalyzers . | . . . . Garrison Access . | . . . . Total Hacks 21 | . 12 . 9 Successful 13 | . 8 . 5 Failed 8 | . 4 . 4 Catastrophic . | . . . . Database Lockouts . | . . . . Manual 11 | . 9 . 2 Terminals 14 | . 11 . 3 Fabricators . | . . . . Repair Stations 2 | . . . 2 Recycling Units 5 | . 1 . 4 Scanalyzers . | . . . . Garrison Access . | . . . . Terminal Hacks 5 | . 3 . 2 Emergency Access Points 1 | . . . 1 Alert Level 3 | . 2 . 1 Locate Traps 1 | . 1 . . Fabricator Hacks . | . . . . Repair Station Hacks 1 | . . . 1 Refit 1 | . . . 1 Recycling Unit Hacks 2 | . . . 2 Report Inventory 1 | . . . 1 Retrieve Components 1 | . . . 1 Scanalyzer . | . . . . Garrison Access Hacks . | . . . . Unauthorized Hacks 5 | . 5 . . Terminals 4 | . 4 . . Track 1 | . 1 . . Botnet 2 | . 2 . . Detonate 1 | . 1 . . Fabricators . | . . . . Repair Stations . | . . . . Recycling Units 1 | . 1 . . Monitor 1 | . 1 . . Scanalyzers . | . . . . Garrison Access . | . . . . Data Cores Recovered . | . . . . Used . | . . . . Hacking Detections 5 | . 3 . 2 Full Trace Events . | . . . . Feedback Events . | . . . . Feedback Blocked . | . . . . Robot Schematics Acquired . | . . . . Robots Built . | . . . . Authchips . | . . . . Time . | . . . . Total Robot Build Rating . | . . . . Part Schematics Acquired . | . . . . Parts Built . | . . . . Authchips . | . . . . Time . | . . . . Total Part Build Rating . | . . . . Parts Repaired . | . . . . Time . | . . . . Parts Recycled . | . . . . Recycled Matter . | . . . . Retrieved Matter . | . . . . Retrieved Components 7 | . . . 7 Parts Scanalyzed . | . . . . Part Schematics Acquired . | . . . . Parts Damaged . | . . . . Bothacking | -11 -10 -10 -9 ------------ Run | Yrd Mat Min Mat Used RIF Installer . | . . . . Robots Hacked . | . . . . Non-combat . | . . . . Combat . | . . . . Robot Hacks Applied . | . . . . Relay Couplers Released . | . . . . Fabnet Peak Effective % . | . . . . Robots Rewired . | . . . . Allies Hacked . | . . . . Hacks Repelled . | . . . . Allies | -11 -10 -10 -9 -------- Run | Yrd Mat Min Mat Total Allies . | . . . . Largest Group . | . . . . Highest-Rated Group . | . . . . Highest-Rated Ally . | . . . . Total Orders . | . . . . Ally Attacks . | . . . . Total Damage . | . . . . Kills . | . . . . Allies Corrupted . | . . . . Allies Melted . | . . . . Intel | -11 -10 -10 -9 ------- Run | Yrd Mat Min Mat Robot Analysis Total . | . . . . Derelict Logs Recovered 2 | . . 2 . Drone Launches . | . . . . Drone Recoveries . | . . . . Exploration | -11 -10 -10 -9 ------------- Run | Yrd Mat Min Mat Turns Passed 1140 | 81 212 499 348 Spaces Moved 1061 | 67 152 476 366 Core 25 | 6 . . 19 Treads . | . . . . Legs 311 | 61 152 95 3 Wheels . | . . . . Hover 1 | . . . 1 Flight 724 | . . 381 343 Fastest Speed 34 | 50 120 37 34 Average Speed 62 | 113 120 53 41 Slowest Speed 200 | 120 120 120 200 Overloaded Moves . | . . . . Propulsion Burnouts . | . . . . Robots Hopped 1 | . . 1 . Cave-ins Triggered 1 | . . 1 . Exploration Rate (%) 35 | 4 27 74 38 Regions Visited 3 Branch Regions 1 Pre-discovered Areas 1 | . . 1 . Known Exits Taken . | . . . . Unknown Exits Taken 3 | 1 1 1 . Scrap Searched 1 | . . 1 . Spaces Dug 1 | . . 1 . Terrain Destroyed 93 | . . 50 43 Melee . | . . . . Projectile 4 | . . 4 . AOE 89 | . . 46 43 Terrain Rammed . | . . . . Walls Destroyed . | . . . . Machines Disabled . | . . . . Actions | -11 -10 -10 -9 --------- Run | Yrd Mat Min Mat Total 1449 | 72 176 693 508 Wait 251 | . 13 192 46 Move 1056 | 66 151 473 366 Hop 1 | . . 1 . Pick Up 29 | 3 6 6 14 Fast Attach 10 | . . 1 9 Attach 25 | 3 1 6 15 Detach 4 | . . . 4 Swap 1 | . . 1 . Drop 18 | . . 4 14 Fire 40 | . 5 9 26 Melee 14 | . . . 14 Ram . | . . . . Kick . | . . . . Crush . | . . . . Escape Stasis . | . . . . Rewire . | . . . . Trap . | . . . . Miscellaneous . | . . . . Route ------- -11/Scrapyard -10/Materials -10/Mines -9/Materials (discovered 2 exits: [*Mat] / [*Min]) History --------- Turn | Location | Event 5 | -11/Scrapyard | Discovered new exit (range 15) 82 | -11/Scrapyard | Entered Materials 223 | -10/Materials | Discovered new exit (range 15) 294 | -10/Materials | Entered Mines 305 | -10/Mines | Build established: Mutant 412 | -10/Mines | Crushed by falling debris 434 | -10/Mines | Received a Rocket Launcher from a helpful Derelict 657 | -10/Mines | Found a hidden stash of uninstalled traps 782 | -10/Mines | Discovered new exit (range 7) 793 | -10/Mines | Entered Materials 793 | -9/Materials | Evolved 2 slots: Propulsion x1, Utility x1 848 | -9/Materials | Discovered new exit (range 11) 910 | -9/Materials | Discovered new exit (range 11) 1083 | -9/Materials | Core integrity fell below 50% 1102 | -9/Materials | Core integrity fell below 20% 1141 | -9/Materials | Destroyed self via exploding Nuclear Reactor Last Messages --------------- 01095_ G-34 Mercenary destroyed. 01097_ Acquired 39 matter. 01097_ K-01 Serf collects debris. 01099_ Acquired Aluminum Leg. 01102_ K-01 Serf collects debris. 01105_ Melee Analysis Suite destroyed. 01106_ K-01 Serf collects debris. 01112_ K-01 Serf cleans the Repair Station. 01112_ Acquired 46 matter. 01114_ Aluminum Leg destroyed. 01115_ W-16 Scout destroyed. 01115_ K-01 Serf collects debris. 01117_ G-34 Mercenary destroyed. 01118_ Acquired 11 matter. 01120_ Acquired Lgt. Ion Engine. 01122_ R-06 Scavenger collects Hover Unit. 01130_ R-06 Scavenger collects Visual Processing Unit. 01141_ Nuclear Reactor explodes. 01141_ G-34 Mercenary destroyed. 01141_ Terminal disabled. Map ----- +----------------------------------------------------+ | | | | | | | | | | | | | | | ????????????????????????????????????????#########? | | ????????????????????????????????????????# ? | | ????????????????????????????????????????# """"" # | | ????????????????????????????????????##### """"" # | | ????????????????????????????????????# # """"" # | | ????????????????????????????????????#! # # | | ????????????????????????????????????# ###+####?? | | ??????????########??????????????????# # #??? | | ??????????# """ #??????????????????# # #??? | | ??????????# "R" #########??????????# # ####??? | | ??????????# " " ## #??????????# # #?????? | | ??????????# [ ## """ #?????????###+## #?????? | | ????????#?# = ## """ #########?# #?????? | | #???????# # %[ ## """ ##!!!![[#?# #?????? | | # ##### ####k#### ##! !! [#?# ####+#####?? | | # # ## !==#?# # #?? | | # /r ###### [### + ! #?? | | # # ###### # #?? | | # ###+######+##+# % @ o # """ #?? | | ???????????# ^ # ##### #+##### """"" #?? | | ???????????# # T" #????# # ???# """"" #?? | | ???????????# # "" #????# # ???#= """"" #?? | | ???????????# # g #????# # ??# """ ?#?? | | ???????????# "T" ### ####????# # ??# ????? | | ???????????# #?###???????# # ?######?????? | | ???????????########???????????# # ????????????? | | ??????????????????????????????# # #???????????? | | ????????????????????????????### ###+####?????????? | | ????????????????????????????# # #?????????? | | ????????????????????????????# # """ #?????????? | | ????????????????????????????# #!"Y" #?????????? | | ????????????????????????????# ] /[][ #?????????? | | ????????????????????????????# #[=* #?????????? | | ????????????????????????????# # !#?????????? | | ????????????????????????????# ########?????????? | | ?????????????????????????#### #????????????????? | | ????????????????????????##! #????????????????? | | ????????????????????????#! #????????????????? | | ????????????????????????#! #?########???????? | | ????????????????????????#! #?# ???????? | | ????????????????????????#! #?#" """""???????? | | ????????????????????????##! #?#" """""?#?????? | | ?????????????????????????#### #?#" """"" #?????? | +----------------------------------------------------+ Best States ------------- Heat Dissipation 28 Energy Generation 10 Energy Capacity 250 Matter Stores 300 Matter Capacity 300 Sight Range 16 Terrain Scan Density 10 ECM Strength 1 Evasion (%) 63 Melee Accuracy 10 Item Schematics ----------------- None Robot Schematics ------------------ None Fabricated ------------ Nothing Alien Tech Used ----------------- None Achievements -------------- None Challenges ------------ None Game ------ Seed MachineCryofiberStabilizer Manual? 0 Play Time 00:21:42 Cumulative 24.8 hours Start 2024.04.02 @ 14:18:42 End 2024.04.02 @ 14:38:41 Sessions 1 Manual Loads 0 Difficulty Rogue Special Mode None Game No. 61 Rogue 21 Adventurer 14 Explorer 26 Win Type - Total 0 Types 0/0/0/0/0/0/0/0/0 Lore% 18 Gallery% 27 Achievement% 23 Wizard Run 0 Options --------- Layout 0 ASCII 0 Keyboard 0 Movement Mouse Keybinds 0 Fullscreen 1 Font 18/SmallcapsGlow Map View 76x50 Zoom Use 0% Tactical HUD 1 Map Filters NONE Filters NONE Steam 1 RUN: b066df07-c86c-4658-bef4-d56b779c036f